Workbook

Sheet Instructions

Sheet Facility Efficiency Increase
B1: Simplified Method for Calculating Efficiency Improvement for Hydropower Facility - Section 243
B3: Name of Hydropower Facility
B4: Plant Generation Capacity and Number of Units
B5: Imperial - Facility Efficiency Calculation
D8: Total Unit Actual Generation prior to improvements | E8: Total Theoretical Unit Generation | F8: Total Expected Unit Generation After Improvements
D9: (MWH) | E9: (MWH) | F9: (MWH)
C10: Unit
C11: Unit
C12: Unit
C13: Unit
C14: Unit
C15: Unit
C16: Unit
C17: Unit
C18: Unit
C19: Unit
C20: Unit
C21: Unit
C22: Unit
C23: Unit
C24: Unit
C25: Unit
C26: Cumulative: | D26: =SUM(D10:D25) -> 0 | E26: =SUM(E10:E25) -> 0 | F26: 0
C28: Existing Facility Efficiency: | F28: =IFERROR(D26/E26*100,0) -> 0
C30: Improved Facility Efficiency: | F30: =IFERROR(F26/E26*100,0) -> 0
C32: Total Facility Efficiency Improvement Percentage: | F32: =IFERROR(F30-F28,0) -> 0

Sheet Monthly Data Tool
B1: Unit Identifier
B2: Unit Nameplate Capacity, Head and Flow
A3: Imperial - Unit Monthly Efficiency Calculation
B5: Data Prior to Improvements: | K5: After Improvements:
B7: Year | C7: Month | D7: Unit Average Flow | E7: Gross Operating Head | F7: Net Operating Head | G7: Unit Actual Generation | H7: Calculated Theoretical Generation | I7: Calculated Facility Efficiency | K7: Unit Efficiency | L7: Calculated Improved Generation | M7: Calculated Generation Increase
B8: (YYYY) | C8: (MM) | D8: (CFS) | E8: (FT) | F8: (FT) | G8: (MWH) | H8: (MWH) | I8: (%) | K8: (%) | L8: (MWH) | M8: (MWH)
H9: =IFERROR(D9*F9/11.81*24*DAY(EOMONTH(DATEVALUE(C9&"-01-"&B9),0))/1000,0) -> 0 | I9: =IFERROR(G9/H9*100,0) -> 0 | L9: =IFERROR(H9*K9/100,0) -> 0 | M9: =IFERROR(L9-G9,0) -> 0
H10: 0 | I10: 0 | L10: 0 | M10: 0
H11: 0 | I11: 0 | L11: 0 | M11: 0
H12: 0 | I12: 0 | L12: 0 | M12: 0
H13: 0 | I13: 0 | L13: 0 | M13: 0
H14: 0 | I14: 0 | L14: 0 | M14: 0
H15: 0 | I15: 0 | L15: 0 | M15: 0
H16: 0 | I16: 0 | L16: 0 | M16: 0
H17: 0 | I17: 0 | L17: 0 | M17: 0
H18: 0 | I18: 0 | L18: 0 | M18: 0
H19: 0 | I19: 0 | L19: 0 | M19: 0
H20: 0 | I20: 0 | L20: 0 | M20: 0
H21: 0 | I21: 0 | L21: 0 | M21: 0
H22: 0 | I22: 0 | L22: 0 | M22: 0
H23: 0 | I23: 0 | L23: 0 | M23: 0
H24: 0 | I24: 0 | L24: 0 | M24: 0
H25: 0 | I25: 0 | L25: 0 | M25: 0
H26: 0 | I26: 0 | L26: 0 | M26: 0
H27: 0 | I27: 0 | L27: 0 | M27: 0
H28: 0 | I28: 0 | L28: 0 | M28: 0
H29: 0 | I29: 0 | L29: 0 | M29: 0
H30: 0 | I30: 0 | L30: 0 | M30: 0
H31: 0 | I31: 0 | L31: 0 | M31: 0
H32: 0 | I32: 0 | L32: 0 | M32: 0
H33: 0 | I33: 0 | L33: 0 | M33: 0
H34: 0 | I34: 0 | L34: 0 | M34: 0
H35: 0 | I35: 0 | L35: 0 | M35: 0
H36: 0 | I36: 0 | L36: 0 | M36: 0
H37: 0 | I37: 0 | L37: 0 | M37: 0
H38: 0 | I38: 0 | L38: 0 | M38: 0
H39: 0 | I39: 0 | L39: 0 | M39: 0
H40: 0 | I40: 0 | L40: 0 | M40: 0
H41: 0 | I41: 0 | L41: 0 | M41: 0
H42: 0 | I42: 0 | L42: 0 | M42: 0
H43: 0 | I43: 0 | L43: 0 | M43: 0
H44: 0 | I44: 0 | L44: 0 | M44: 0
H45: 0 | I45: 0 | L45: 0 | M45: 0
H46: 0 | I46: 0 | L46: 0 | M46: 0
H47: 0 | I47: 0 | L47: 0 | M47: 0
H48: 0 | I48: 0 | L48: 0 | M48: 0
H49: 0 | I49: 0 | L49: 0 | M49: 0
H50: 0 | I50: 0 | L50: 0 | M50: 0
H51: 0 | I51: 0 | L51: 0 | M51: 0
H52: 0 | I52: 0 | L52: 0 | M52: 0
H53: 0 | I53: 0 | L53: 0 | M53: 0
H54: 0 | I54: 0 | L54: 0 | M54: 0
H55: 0 | I55: 0 | L55: 0 | M55: 0
H56: 0 | I56: 0 | L56: 0 | M56: 0
H57: 0 | I57: 0 | L57: 0 | M57: 0
H58: 0 | I58: 0 | L58: 0 | M58: 0
H59: 0 | I59: 0 | L59: 0 | M59: 0
H60: 0 | I60: 0 | L60: 0 | M60: 0
H61: 0 | I61: 0 | L61: 0 | M61: 0
H62: 0 | I62: 0 | L62: 0 | M62: 0
H63: 0 | I63: 0 | L63: 0 | M63: 0
H64: 0 | I64: 0 | L64: 0 | M64: 0
H65: 0 | I65: 0 | L65: 0 | M65: 0
H66: 0 | I66: 0 | L66: 0 | M66: 0
H67: 0 | I67: 0 | L67: 0 | M67: 0
H68: 0 | I68: 0 | L68: 0 | M68: 0
B69: Unit Cumulative: | G69: =SUM(G9:G68) -> 0 | H69: =SUM(H9:H68) -> 0 | I69: 0 | L69: =SUM(L9:L68) -> 0 | M69: =SUM(M9:M68) -> 0
G71: Existing Unit Efficiency: | H71: =IFERROR(G69/H69*100,0) -> 0
G73: Improved Unit Efficiency: | H73: =IFERROR(L69/H69*100,0) -> 0

Sheet Daily Data Tool
B1: Unit Identifier
B2: Unit Nameplate Capacity, Head and Flow
B3: Imperal - Unit Daily Efficiency Calculation
B5: Data Prior to Improvements: | K5: After Improvements:
B7: Year | C7: Month | D7: Day | E7: Unit Average Flow | F7: Gross Operating Head | G7: Net Operating Head | H7: Unit Actual Generation | I7: Calculated Theoretical Generation | J7: Calculated Facility Efficiency | L7: Unit Efficiency | M7: Calculated Improved Generation | N7: Calculated Generation Increase
B8: (YYYY) | C8: (MM) | D8: (DD) | E8: (CFS) | F8: (FT) | G8: (FT) | H8: (MWH) | I8: (MWH) | J8: (%) | L8: (%) | M8: (MWH) | N8: (MWH)
I9: =IFERROR(E9*G9/11.81*24/1000,0) -> 0 | J9: =IFERROR(H9/I9*100,0) -> 0 | M9: =IFERROR(I9*L9/100,0) -> 0 | N9: =IFERROR(M9-H9,0) -> 0
I10: =IFERROR(E10*G10/11.81*24/1000,0) -> 0 | J10: 0 | M10: =IFERROR(I10*L10/100,0) -> 0 | N10: 0
I11: =IFERROR(E11*G11/11.81*24/1000,0) -> 0 | J11: 0 | M11: 0 | N11: 0
I12: 0 | J12: 0 | M12: 0 | N12: 0
I13: 0 | J13: 0 | M13: 0 | N13: 0
I14: 0 | J14: 0 | M14: 0 | N14: 0
I15: 0 | J15: 0 | M15: 0 | N15: 0
I16: 0 | J16: 0 | M16: 0 | N16: 0
I17: 0 | J17: 0 | M17: 0 | N17: 0
I18: 0 | J18: 0 | M18: 0 | N18: 0
I19: 0 | J19: 0 | M19: 0 | N19: 0
I20: 0 | J20: 0 | M20: 0 | N20: 0
I21: 0 | J21: 0 | M21: 0 | N21: 0
I22: 0 | J22: 0 | M22: 0 | N22: 0
I23: 0 | J23: 0 | M23: 0 | N23: 0
I24: 0 | J24: 0 | M24: 0 | N24: 0
I25: 0 | J25: 0 | M25: 0 | N25: 0
I26: 0 | J26: 0 | M26: 0 | N26: 0
I27: 0 | J27: 0 | M27: 0 | N27: 0
I28: 0 | J28: 0 | M28: 0 | N28: 0
I29: 0 | J29: 0 | M29: 0 | N29: 0
I30: 0 | J30: 0 | M30: 0 | N30: 0
I31: 0 | J31: 0 | M31: 0 | N31: 0
I32: 0 | J32: 0 | M32: 0 | N32: 0
I33: 0 | J33: 0 | M33: 0 | N33: 0
I34: 0 | J34: 0 | M34: 0 | N34: 0
I35: 0 | J35: 0 | M35: 0 | N35: 0
I36: 0 | J36: 0 | M36: 0 | N36: 0
I37: 0 | J37: 0 | M37: 0 | N37: 0
I38: 0 | J38: 0 | M38: 0 | N38: 0
I39: 0 | J39: 0 | M39: 0 | N39: 0
I40: 0 | J40: 0 | M40: 0 | N40: 0
I41: 0 | J41: 0 | M41: 0 | N41: 0
I42: 0 | J42: 0 | M42: 0 | N42: 0
I43: 0 | J43: 0 | M43: 0 | N43: 0
I44: 0 | J44: 0 | M44: 0 | N44: 0
I45: 0 | J45: 0 | M45: 0 | N45: 0
I46: 0 | J46: 0 | M46: 0 | N46: 0
I47: 0 | J47: 0 | M47: 0 | N47: 0
I48: 0 | J48: 0 | M48: 0 | N48: 0
I49: 0 | J49: 0 | M49: 0 | N49: 0
I50: 0 | J50: 0 | M50: 0 | N50: 0
I51: 0 | J51: 0 | M51: 0 | N51: 0
I52: 0 | J52: 0 | M52: 0 | N52: 0
I53: 0 | J53: 0 | M53: 0 | N53: 0
I54: 0 | J54: 0 | M54: 0 | N54: 0
I55: 0 | J55: 0 | M55: 0 | N55: 0
I56: 0 | J56: 0 | M56: 0 | N56: 0
I57: 0 | J57: 0 | M57: 0 | N57: 0
I58: 0 | J58: 0 | M58: 0 | N58: 0
I59: 0 | J59: 0 | M59: 0 | N59: 0
I60: 0 | J60: 0 | M60: 0 | N60: 0
I61: 0 | J61: 0 | M61: 0 | N61: 0
I62: 0 | J62: 0 | M62: 0 | N62: 0
I63: 0 | J63: 0 | M63: 0 | N63: 0
I64: 0 | J64: 0 | M64: 0 | N64: 0
I65: 0 | J65: 0 | M65: 0 | N65: 0
I66: 0 | J66: 0 | M66: 0 | N66: 0
I67: 0 | J67: 0 | M67: 0 | N67: 0
I68: 0 | J68: 0 | M68: 0 | N68: 0
I69: 0 | J69: 0 | M69: 0 | N69: 0
I70: 0 | J70: 0 | M70: 0 | N70: 0
I71: 0 | J71: 0 | M71: 0 | N71: 0
I72: 0 | J72: 0 | M72: =IFERROR(I72*L72/100,0) -> 0 | N72: 0
I73: 0 | J73: 0 | M73: 0 | N73: 0
I74: 0 | J74: 0 | M74: 0 | N74: 0
I75: =IFERROR(E75*G75/11.81*24/1000,0) -> 0 | J75: 0 | M75: 0 | N75: 0
I76: 0 | J76: 0 | M76: 0 | N76: 0
I77: 0 | J77: 0 | M77: 0 | N77: 0
I78: 0 | J78: 0 | M78: 0 | N78: 0
I79: 0 | J79: 0 | M79: 0 | N79: 0
I80: 0 | J80: 0 | M80: 0 | N80: 0
I81: 0 | J81: 0 | M81: 0 | N81: 0
I82: 0 | J82: 0 | M82: 0 | N82: 0
I83: 0 | J83: 0 | M83: 0 | N83: 0
I84: 0 | J84: 0 | M84: 0 | N84: 0
I85: 0 | J85: 0 | M85: 0 | N85: 0
I86: 0 | J86: 0 | M86: 0 | N86: 0
I87: 0 | J87: 0 | M87: 0 | N87: 0
I88: 0 | J88: 0 | M88: 0 | N88: 0
I89: 0 | J89: 0 | M89: 0 | N89: 0
I90: 0 | J90: 0 | M90: 0 | N90: 0
I91: 0 | J91: 0 | M91: 0 | N91: 0
I92: 0 | J92: 0 | M92: 0 | N92: 0
I93: 0 | J93: 0 | M93: 0 | N93: 0
I94: 0 | J94: 0 | M94: 0 | N94: 0
I95: 0 | J95: 0 | M95: 0 | N95: 0
I96: 0 | J96: 0 | M96: 0 | N96: 0
I97: 0 | J97: 0 | M97: 0 | N97: 0
I98: 0 | J98: =IFERROR(H98/I98*100,0) -> 0 | M98: 0 | N98: 0
I99: 0 | J99: 0 | M99: 0 | N99: =IFERROR(M99-H99,0) -> 0
I100: 0 | J100: 0 | M100: 0 | N100: 0
I101: 0 | J101: 0 | M101: 0 | N101: 0
I102: 0 | J102: 0 | M102: 0 | N102: 0
I103: 0 | J103: 0 | M103: 0 | N103: 0
I104: 0 | J104: 0 | M104: 0 | N104: 0
I105: 0 | J105: 0 | M105: 0 | N105: 0
I106: 0 | J106: 0 | M106: 0 | N106: 0
I107: 0 | J107: 0 | M107: 0 | N107: 0
I108: 0 | J108: 0 | M108: 0 | N108: 0
I109: 0 | J109: 0 | M109: 0 | N109: 0
I110: 0 | J110: 0 | M110: 0 | N110: 0
I111: 0 | J111: 0 | M111: 0 | N111: 0
I112: 0 | J112: 0 | M112: 0 | N112: 0
I113: 0 | J113: 0 | M113: 0 | N113: 0
I114: 0 | J114: 0 | M114: 0 | N114: 0
I115: 0 | J115: 0 | M115: 0 | N115: 0
I116: 0 | J116: 0 | M116: 0 | N116: 0
I117: 0 | J117: 0 | M117: 0 | N117: 0
I118: 0 | J118: 0 | M118: 0 | N118: 0
I119: 0 | J119: 0 | M119: 0 | N119: 0
I120: 0 | J120: 0 | M120: 0 | N120: 0
I121: 0 | J121: 0 | M121: 0 | N121: 0
I122: 0 | J122: 0 | M122: 0 | N122: 0
I123: 0 | J123: 0 | M123: 0 | N123: 0
I124: 0 | J124: 0 | M124: 0 | N124: 0
I125: 0 | J125: 0 | M125: 0 | N125: 0
I126: 0 | J126: 0 | M126: 0 | N126: 0
I127: 0 | J127: 0 | M127: 0 | N127: 0
I128: 0 | J128: 0 | M128: 0 | N128: 0
I129: 0 | J129: 0 | M129: 0 | N129: 0
I130: 0 | J130: 0 | M130: 0 | N130: 0
I131: 0 | J131: 0 | M131: 0 | N131: 0
I132: 0 | J132: 0 | M132: 0 | N132: 0
I133: 0 | J133: 0 | M133: 0 | N133: 0
I134: 0 | J134: 0 | M134: 0 | N134: 0
I135: 0 | J135: 0 | M135: 0 | N135: 0
I136: 0 | J136: 0 | M136: =IFERROR(I136*L136/100,0) -> 0 | N136: 0
I137: 0 | J137: 0 | M137: 0 | N137: 0
I138: 0 | J138: 0 | M138: 0 | N138: 0
I139: =IFERROR(E139*G139/11.81*24/1000,0) -> 0 | J139: 0 | M139: 0 | N139: 0
I140: 0 | J140: 0 | M140: 0 | N140: 0
I141: 0 | J141: 0 | M141: 0 | N141: 0
I142: 0 | J142: 0 | M142: 0 | N142: 0
I143: 0 | J143: 0 | M143: 0 | N143: 0
I144: 0 | J144: 0 | M144: 0 | N144: 0
I145: 0 | J145: 0 | M145: 0 | N145: 0
I146: 0 | J146: 0 | M146: 0 | N146: 0
I147: 0 | J147: 0 | M147: 0 | N147: 0
I148: 0 | J148: 0 | M148: 0 | N148: 0
I149: 0 | J149: 0 | M149: 0 | N149: 0
I150: 0 | J150: 0 | M150: 0 | N150: 0
I151: 0 | J151: 0 | M151: 0 | N151: 0
I152: 0 | J152: 0 | M152: 0 | N152: 0
I153: 0 | J153: 0 | M153: 0 | N153: 0
I154: 0 | J154: 0 | M154: 0 | N154: 0
I155: 0 | J155: 0 | M155: 0 | N155: 0
I156: 0 | J156: 0 | M156: 0 | N156: 0
I157: 0 | J157: 0 | M157: 0 | N157: 0
I158: 0 | J158: 0 | M158: 0 | N158: 0
I159: 0 | J159: 0 | M159: 0 | N159: 0
I160: 0 | J160: 0 | M160: 0 | N160: 0
I161: 0 | J161: 0 | M161: 0 | N161: 0
I162: 0 | J162: =IFERROR(H162/I162*100,0) -> 0 | M162: 0 | N162: 0
I163: 0 | J163: 0 | M163: 0 | N163: =IFERROR(M163-H163,0) -> 0
I164: 0 | J164: 0 | M164: 0 | N164: 0
I165: 0 | J165: 0 | M165: 0 | N165: 0
I166: 0 | J166: 0 | M166: 0 | N166: 0
I167: 0 | J167: 0 | M167: 0 | N167: 0
I168: 0 | J168: 0 | M168: 0 | N168: 0
I169: 0 | J169: 0 | M169: 0 | N169: 0
I170: 0 | J170: 0 | M170: 0 | N170: 0
I171: 0 | J171: 0 | M171: 0 | N171: 0
I172: 0 | J172: 0 | M172: 0 | N172: 0
I173: 0 | J173: 0 | M173: 0 | N173: 0
I174: 0 | J174: 0 | M174: 0 | N174: 0
I175: 0 | J175: 0 | M175: 0 | N175: 0
I176: 0 | J176: 0 | M176: 0 | N176: 0
I177: 0 | J177: 0 | M177: 0 | N177: 0
I178: 0 | J178: 0 | M178: 0 | N178: 0
I179: 0 | J179: 0 | M179: 0 | N179: 0
I180: 0 | J180: 0 | M180: 0 | N180: 0
I181: 0 | J181: 0 | M181: 0 | N181: 0
I182: 0 | J182: 0 | M182: 0 | N182: 0
I183: 0 | J183: 0 | M183: 0 | N183: 0
I184: 0 | J184: 0 | M184: 0 | N184: 0
I185: 0 | J185: 0 | M185: 0 | N185: 0
I186: 0 | J186: 0 | M186: 0 | N186: 0
I187: 0 | J187: 0 | M187: 0 | N187: 0
I188: 0 | J188: 0 | M188: 0 | N188: 0
I189: 0 | J189: 0 | M189: 0 | N189: 0
I190: 0 | J190: 0 | M190: 0 | N190: 0
I191: 0 | J191: 0 | M191: 0 | N191: 0
I192: 0 | J192: 0 | M192: 0 | N192: 0
I193: 0 | J193: 0 | M193: 0 | N193: 0
I194: 0 | J194: 0 | M194: 0 | N194: 0
I195: 0 | J195: 0 | M195: 0 | N195: 0
I196: 0 | J196: 0 | M196: 0 | N196: 0
I197: 0 | J197: 0 | M197: 0 | N197: 0
I198: 0 | J198: 0 | M198: 0 | N198: 0
I199: 0 | J199: 0 | M199: 0 | N199: 0
I200: 0 | J200: 0 | M200: 0 | N200: 0
I201: 0 | J201: 0 | M201: 0 | N201: 0
I202: 0 | J202: 0 | M202: 0 | N202: 0
... 1634 more rows

Sheet Hourly Data Tool
B1: Unit Identifier
B2: Unit Nameplate Capacity, Head and Flow
B3: Imperial Unit Hourly Efficiency Calculation
B5: Data Prior to Improvements: | M5: After Improvements:
B7: Year | C7: Month | D7: Day | E7: Hour | F7: Unit Average Flow | G7: Gross Operating Head | H7: Net Operating Head | I7: Unit Actual Generation | J7: Calculated Theoretical Generation | K7: Calculated Facility Efficiency | M7: Unit Efficiency | N7: Calculated Improved Generation | O7: Calculated Generation Increase
B8: (YYYY) | C8: (MM) | D8: (DD) | E8: (HH) | F8: (CFS) | G8: (FT) | H8: (FT) | I8: (MWH) | J8: (MWH) | K8: (%) | M8: (%) | N8: (MWH) | O8: (MWH)
J9: =IFERROR(F9*H9/11.81/1000,0) -> 0 | K9: =IFERROR(I9/J9*100,0) -> 0 | N9: =IFERROR(J9*M9/100,0) -> 0 | O9: =IFERROR(N9-I9,0) -> 0
J10: =IFERROR(F10*H10/11.81/1000,0) -> 0 | K10: =IFERROR(I10/J10*100,0) -> 0 | N10: =IFERROR(J10*M10/100,0) -> 0 | O10: =IFERROR(N10-I10,0) -> 0
J11: =IFERROR(F11*H11/11.81/1000,0) -> 0 | K11: 0 | N11: 0 | O11: 0
J12: 0 | K12: 0 | N12: 0 | O12: 0
J13: 0 | K13: 0 | N13: 0 | O13: 0
J14: 0 | K14: 0 | N14: 0 | O14: 0
J15: 0 | K15: 0 | N15: 0 | O15: 0
J16: 0 | K16: 0 | N16: 0 | O16: 0
J17: 0 | K17: 0 | N17: 0 | O17: 0
J18: 0 | K18: 0 | N18: 0 | O18: 0
J19: 0 | K19: 0 | N19: 0 | O19: 0
J20: 0 | K20: 0 | N20: 0 | O20: 0
J21: 0 | K21: 0 | N21: 0 | O21: 0
J22: 0 | K22: 0 | N22: 0 | O22: 0
J23: 0 | K23: 0 | N23: 0 | O23: 0
J24: 0 | K24: 0 | N24: 0 | O24: 0
J25: 0 | K25: 0 | N25: 0 | O25: 0
J26: 0 | K26: 0 | N26: 0 | O26: 0
J27: 0 | K27: 0 | N27: 0 | O27: 0
J28: 0 | K28: 0 | N28: 0 | O28: 0
J29: 0 | K29: 0 | N29: 0 | O29: 0
J30: 0 | K30: 0 | N30: 0 | O30: 0
J31: 0 | K31: 0 | N31: 0 | O31: 0
J32: 0 | K32: 0 | N32: 0 | O32: 0
J33: 0 | K33: 0 | N33: 0 | O33: 0
J34: 0 | K34: 0 | N34: 0 | O34: 0
J35: 0 | K35: 0 | N35: 0 | O35: 0
J36: 0 | K36: 0 | N36: 0 | O36: 0
J37: 0 | K37: 0 | N37: 0 | O37: 0
J38: 0 | K38: 0 | N38: 0 | O38: 0
J39: 0 | K39: 0 | N39: 0 | O39: 0
J40: 0 | K40: 0 | N40: 0 | O40: 0
J41: 0 | K41: 0 | N41: 0 | O41: 0
J42: 0 | K42: 0 | N42: 0 | O42: 0
J43: 0 | K43: 0 | N43: 0 | O43: 0
J44: 0 | K44: 0 | N44: 0 | O44: 0
J45: 0 | K45: 0 | N45: 0 | O45: 0
J46: 0 | K46: 0 | N46: 0 | O46: 0
J47: 0 | K47: 0 | N47: 0 | O47: 0
J48: 0 | K48: 0 | N48: 0 | O48: 0
J49: 0 | K49: 0 | N49: 0 | O49: 0
J50: 0 | K50: 0 | N50: 0 | O50: 0
J51: 0 | K51: 0 | N51: 0 | O51: 0
J52: 0 | K52: 0 | N52: 0 | O52: 0
J53: 0 | K53: 0 | N53: 0 | O53: 0
J54: 0 | K54: 0 | N54: 0 | O54: 0
J55: 0 | K55: 0 | N55: 0 | O55: 0
J56: 0 | K56: 0 | N56: 0 | O56: 0
J57: 0 | K57: 0 | N57: 0 | O57: 0
J58: 0 | K58: 0 | N58: 0 | O58: 0
J59: 0 | K59: 0 | N59: 0 | O59: 0
J60: 0 | K60: 0 | N60: 0 | O60: 0
J61: 0 | K61: 0 | N61: 0 | O61: 0
J62: 0 | K62: 0 | N62: 0 | O62: 0
J63: 0 | K63: 0 | N63: 0 | O63: 0
J64: 0 | K64: 0 | N64: 0 | O64: 0
J65: 0 | K65: 0 | N65: 0 | O65: 0
J66: 0 | K66: 0 | N66: 0 | O66: 0
J67: 0 | K67: 0 | N67: 0 | O67: 0
J68: 0 | K68: 0 | N68: 0 | O68: 0
J69: 0 | K69: 0 | N69: 0 | O69: 0
J70: 0 | K70: 0 | N70: 0 | O70: 0
J71: 0 | K71: 0 | N71: 0 | O71: 0
J72: 0 | K72: 0 | N72: 0 | O72: 0
J73: 0 | K73: 0 | N73: 0 | O73: 0
J74: 0 | K74: =IFERROR(I74/J74*100,0) -> 0 | N74: =IFERROR(J74*M74/100,0) -> 0 | O74: =IFERROR(N74-I74,0) -> 0
J75: =IFERROR(F75*H75/11.81/1000,0) -> 0 | K75: 0 | N75: 0 | O75: 0
J76: 0 | K76: 0 | N76: 0 | O76: 0
J77: 0 | K77: 0 | N77: 0 | O77: 0
J78: 0 | K78: 0 | N78: 0 | O78: 0
J79: 0 | K79: 0 | N79: 0 | O79: 0
J80: 0 | K80: 0 | N80: 0 | O80: 0
J81: 0 | K81: 0 | N81: 0 | O81: 0
J82: 0 | K82: 0 | N82: 0 | O82: 0
J83: 0 | K83: 0 | N83: 0 | O83: 0
J84: 0 | K84: 0 | N84: 0 | O84: 0
J85: 0 | K85: 0 | N85: 0 | O85: 0
J86: 0 | K86: 0 | N86: 0 | O86: 0
J87: 0 | K87: 0 | N87: 0 | O87: 0
J88: 0 | K88: 0 | N88: 0 | O88: 0
J89: 0 | K89: 0 | N89: 0 | O89: 0
J90: 0 | K90: 0 | N90: 0 | O90: 0
J91: 0 | K91: 0 | N91: 0 | O91: 0
J92: 0 | K92: 0 | N92: 0 | O92: 0
J93: 0 | K93: 0 | N93: 0 | O93: 0
J94: 0 | K94: 0 | N94: 0 | O94: 0
J95: 0 | K95: 0 | N95: 0 | O95: 0
J96: 0 | K96: 0 | N96: 0 | O96: 0
J97: 0 | K97: 0 | N97: 0 | O97: 0
J98: 0 | K98: 0 | N98: 0 | O98: 0
J99: 0 | K99: 0 | N99: 0 | O99: 0
J100: 0 | K100: 0 | N100: 0 | O100: 0
J101: 0 | K101: 0 | N101: 0 | O101: 0
J102: 0 | K102: 0 | N102: 0 | O102: 0
J103: 0 | K103: 0 | N103: 0 | O103: 0
J104: 0 | K104: 0 | N104: 0 | O104: 0
J105: 0 | K105: 0 | N105: 0 | O105: 0
J106: 0 | K106: 0 | N106: 0 | O106: 0
J107: 0 | K107: 0 | N107: 0 | O107: 0
J108: 0 | K108: 0 | N108: 0 | O108: 0
J109: 0 | K109: 0 | N109: 0 | O109: 0
J110: 0 | K110: 0 | N110: 0 | O110: 0
J111: 0 | K111: 0 | N111: 0 | O111: 0
J112: 0 | K112: 0 | N112: 0 | O112: 0
J113: 0 | K113: 0 | N113: 0 | O113: 0
J114: 0 | K114: 0 | N114: 0 | O114: 0
J115: 0 | K115: 0 | N115: 0 | O115: 0
J116: 0 | K116: 0 | N116: 0 | O116: 0
J117: 0 | K117: 0 | N117: 0 | O117: 0
J118: 0 | K118: 0 | N118: 0 | O118: 0
J119: 0 | K119: 0 | N119: 0 | O119: 0
J120: 0 | K120: 0 | N120: 0 | O120: 0
J121: 0 | K121: 0 | N121: 0 | O121: 0
J122: 0 | K122: 0 | N122: 0 | O122: 0
J123: 0 | K123: 0 | N123: 0 | O123: 0
J124: 0 | K124: 0 | N124: 0 | O124: 0
J125: 0 | K125: 0 | N125: 0 | O125: 0
J126: 0 | K126: 0 | N126: 0 | O126: 0
J127: 0 | K127: 0 | N127: 0 | O127: 0
J128: 0 | K128: 0 | N128: 0 | O128: 0
J129: 0 | K129: 0 | N129: 0 | O129: 0
J130: 0 | K130: 0 | N130: 0 | O130: 0
J131: 0 | K131: 0 | N131: 0 | O131: 0
J132: 0 | K132: 0 | N132: 0 | O132: 0
J133: 0 | K133: 0 | N133: 0 | O133: 0
J134: 0 | K134: 0 | N134: 0 | O134: 0
J135: 0 | K135: 0 | N135: 0 | O135: 0
J136: 0 | K136: 0 | N136: 0 | O136: 0
J137: 0 | K137: 0 | N137: 0 | O137: 0
J138: 0 | K138: =IFERROR(I138/J138*100,0) -> 0 | N138: =IFERROR(J138*M138/100,0) -> 0 | O138: =IFERROR(N138-I138,0) -> 0
J139: =IFERROR(F139*H139/11.81/1000,0) -> 0 | K139: 0 | N139: 0 | O139: 0
J140: 0 | K140: 0 | N140: 0 | O140: 0
J141: 0 | K141: 0 | N141: 0 | O141: 0
J142: 0 | K142: 0 | N142: 0 | O142: 0
J143: 0 | K143: 0 | N143: 0 | O143: 0
J144: 0 | K144: 0 | N144: 0 | O144: 0
J145: 0 | K145: 0 | N145: 0 | O145: 0
J146: 0 | K146: 0 | N146: 0 | O146: 0
J147: 0 | K147: 0 | N147: 0 | O147: 0
J148: 0 | K148: 0 | N148: 0 | O148: 0
J149: 0 | K149: 0 | N149: 0 | O149: 0
J150: 0 | K150: 0 | N150: 0 | O150: 0
J151: 0 | K151: 0 | N151: 0 | O151: 0
J152: 0 | K152: 0 | N152: 0 | O152: 0
J153: 0 | K153: 0 | N153: 0 | O153: 0
J154: 0 | K154: 0 | N154: 0 | O154: 0
J155: 0 | K155: 0 | N155: 0 | O155: 0
J156: 0 | K156: 0 | N156: 0 | O156: 0
J157: 0 | K157: 0 | N157: 0 | O157: 0
J158: 0 | K158: 0 | N158: 0 | O158: 0
J159: 0 | K159: 0 | N159: 0 | O159: 0
J160: 0 | K160: 0 | N160: 0 | O160: 0
J161: 0 | K161: 0 | N161: 0 | O161: 0
J162: 0 | K162: 0 | N162: 0 | O162: 0
J163: 0 | K163: 0 | N163: 0 | O163: 0
J164: 0 | K164: 0 | N164: 0 | O164: 0
J165: 0 | K165: 0 | N165: 0 | O165: 0
J166: 0 | K166: 0 | N166: 0 | O166: 0
J167: 0 | K167: 0 | N167: 0 | O167: 0
J168: 0 | K168: 0 | N168: 0 | O168: 0
J169: 0 | K169: 0 | N169: 0 | O169: 0
J170: 0 | K170: 0 | N170: 0 | O170: 0
J171: 0 | K171: 0 | N171: 0 | O171: 0
J172: 0 | K172: 0 | N172: 0 | O172: 0
J173: 0 | K173: 0 | N173: 0 | O173: 0
J174: 0 | K174: 0 | N174: 0 | O174: 0
J175: 0 | K175: 0 | N175: 0 | O175: 0
J176: 0 | K176: 0 | N176: 0 | O176: 0
J177: 0 | K177: 0 | N177: 0 | O177: 0
J178: 0 | K178: 0 | N178: 0 | O178: 0
J179: 0 | K179: 0 | N179: 0 | O179: 0
J180: 0 | K180: 0 | N180: 0 | O180: 0
J181: 0 | K181: 0 | N181: 0 | O181: 0
J182: 0 | K182: 0 | N182: 0 | O182: 0
J183: 0 | K183: 0 | N183: 0 | O183: 0
J184: 0 | K184: 0 | N184: 0 | O184: 0
J185: 0 | K185: 0 | N185: 0 | O185: 0
J186: 0 | K186: 0 | N186: 0 | O186: 0
J187: 0 | K187: 0 | N187: 0 | O187: 0
J188: 0 | K188: 0 | N188: 0 | O188: 0
J189: 0 | K189: 0 | N189: 0 | O189: 0
J190: 0 | K190: 0 | N190: 0 | O190: 0
J191: 0 | K191: 0 | N191: 0 | O191: 0
J192: 0 | K192: 0 | N192: 0 | O192: 0
J193: 0 | K193: 0 | N193: 0 | O193: 0
J194: 0 | K194: 0 | N194: 0 | O194: 0
J195: 0 | K195: 0 | N195: 0 | O195: 0
J196: 0 | K196: 0 | N196: 0 | O196: 0
J197: 0 | K197: 0 | N197: 0 | O197: 0
J198: 0 | K198: 0 | N198: 0 | O198: 0
J199: 0 | K199: 0 | N199: 0 | O199: 0
J200: 0 | K200: 0 | N200: 0 | O200: 0
J201: 0 | K201: 0 | N201: 0 | O201: 0
J202: 0 | K202: =IFERROR(I202/J202*100,0) -> 0 | N202: 0 | O202: =IFERROR(N202-I202,0) -> 0
... 4296 more rows

Sheet Example - Facility Efficiency
B1: Simplified Method for Calculating Efficiency Improvement for Hydropower Facility - Section 243
B3: Example Hydropower Facility
B4: 120 MW, Two Units
B5: Imperial - Facility Efficiency Calculation
D8: Total Unit Actual Generation prior to improvements | E8: Total Theoretical Unit Generation | F8: Total Expected Unit Generation After Improvements
D9: (MWH) | E9: (MWH) | F9: (MWH)
C10: Unit E1 | D10: ='Example - Monthly Data Unit 1'!Unit_Cumulative_Actual_Generation -> 196300 | E10: ='Example - Monthly Data Unit 1'!Unit_Cumulative_Calculated_Theoretical_Generation -> 243480.2083 | F10: ='Example - Monthly Data Unit 1'!Unit_Cumulative_Calculated_Improved_Generation -> 208177.0974
C11: Unit E2 | D11: ='Example - Monthly Data Unit 2'!Unit_Cumulative_Actual_Generation -> 230500 | E11: ='Example - Monthly Data Unit 2'!Unit_Cumulative_Calculated_Theoretical_Generation -> 293673.8946 | F11: ='Example - Monthly Data Unit 2'!Unit_Cumulative_Calculated_Improved_Generation -> 250442.8111
C12: Cumulative: | D12: =SUM(D10:D11) -> 426800 | E12: =SUM(E10:E11) -> 537154.1029 | F12: =SUM(F10:F11) -> 458619.9085
C14: Existing Facility Efficiency: | F14: =IFERROR(D12/E12*100,0) -> 79.45578331
C16: Improved Facility Efficiency: | F16: =IFERROR(F12/E12*100,0) -> 85.37957842
C18: Total Facility Efficiency Improvement Percentage: | F18: =IFERROR(F16-F14,0) -> 5.923795115

Sheet Example - Monthly Data Unit 1
B1: Unit E1 Example
B2: 60 MW, 345 FT, 2100 CFS
B3: Imperial - Unit Monthly Efficiency Calculation
B5: Data Prior to Improvements: | K5: After Improvements:
B7: Year | C7: Month | D7: Unit Average Flow | E7: Gross Operating Head | F7: Net Operating Head | G7: Unit Actual Generation | H7: Calculated Theoretical Generation | I7: Calculated Facility Efficiency | K7: Unit Efficiency | L7: Calculated Improved Generation | M7: Calculated Generation Increase
B8: (YYYY) | C8: (MM) | D8: (CFS) | E8: (FT) | F8: (FT) | G8: (MWH) | H8: (MWH) | I8: (%) | K8: (%) | L8: (MWH) | M8: (MWH)
B9: 2018 | C9: 1 | D9: 900 | E9: 153 | F9: =E9-0.000004*(POWER(D9,2)) -> 149.76 | G9: 5300 | H9: =IFERROR(D9*F9/11.81*24*DAY(EOMONTH(DATEVALUE(C9&"-01-"&B9),0))/1000,0) -> 8491.049619 | I9: =IFERROR(G9/H9*100,0) -> 62.41866716 | K9: 82.5 | L9: =IFERROR(H9*K9/100,0) -> 7005.115936 | M9: =IFERROR(L9-G9,0) -> 1705.115936
B10: 2018 | C10: 2 | D10: 880 | E10: 163 | F10: =E10-0.000004*(POWER(D10,2)) -> 159.9024 | G10: 5550 | H10: 8006.764036 | I10: =IFERROR(G10/H10*100,0) -> 69.31639268 | K10: 82.6 | L10: =IFERROR(H10*K10/100,0) -> 6613.587094 | M10: =IFERROR(L10-G10,0) -> 1063.587094
B11: 2018 | C11: 3 | D11: 1150 | E11: 155 | F11: 149.71 | G11: 7200 | H11: 10846.05216 | I11: =IFERROR(G11/H11*100,0) -> 66.3836011 | K11: 83 | L11: 9002.223292 | M11: =IFERROR(L11-G11,0) -> 1802.223292
B12: 2018 | C12: 4 | D12: 1250 | E12: 181 | F12: 174.75 | G12: 9550 | H12: 13317.10415 | I12: 71.71228739 | K12: 84 | L12: 11186.36749 | M12: 1636.367485
B13: 2018 | C13: 5 | D13: 1500 | E13: 189 | F13: 180 | G13: 12000 | H13: 17009.31414 | I13: 70.54958184 | K13: 83 | L13: 14117.73074 | M13: 2117.730737
B14: 2018 | C14: 6 | D14: 1750 | E14: 212 | F14: 199.75 | G14: 17500 | H14: 21311.17697 | I14: 82.11653456 | K14: 85 | L14: 18114.50042 | M14: 614.5004234
B15: 2018 | C15: 7 | D15: 2100 | E15: 318 | F15: 300.36 | G15: 34500 | H15: 39736.02574 | I15: 86.82297577 | K15: 87 | L15: 34570.34239 | M15: 70.34239458
B16: 2018 | C16: 8 | D16: 2000 | E16: 341 | F16: 325 | G16: 34500 | H16: 40948.34886 | I16: 84.25248139 | K16: 87 | L16: 35625.06351 | M16: 1125.063506
B17: 2018 | C17: 9 | D17: 1950 | E17: 290 | F17: 274.79 | G17: 30000 | H17: 32667.66808 | I17: 91.83391948 | K17: 87 | L17: 28420.87123 | M17: -1579.128772
B18: 2018 | C18: 10 | D18: 1550 | E18: 260 | F18: 250.39 | G18: 20000 | H18: 24449.59763 | I18: 81.80093719 | K18: 86 | L18: 21026.65396 | M18: 1026.653961
B19: 2018 | C19: 11 | D19: 1375 | E19: 208 | F19: 200.4375 | G19: 14000 | H19: 16802.12743 | I19: 83.32278192 | K19: 85 | L19: 14281.80832 | M19: 281.8083192
B20: 2018 | C20: 12 | D20: 1050 | E20: 154 | F20: 149.59 | G20: 6200 | H20: 9894.979509 | I20: 62.65803779 | K20: 83 | L20: 8212.832992 | M20: 2012.832992
B21: Unit Cumulative: | G21: =SUM(G9:G20) -> 196300 | H21: =SUM(H9:H20) -> 243480.2083 | I21: 80.62256943 | L21: =SUM(L9:L20) -> 208177.0974 | M21: =SUM(M9:M20) -> 11877.09737
G23: Existing Unit Efficiency: | H23: =IFERROR(G21/H21*100,0) -> 80.62256943
G25: Improved Unit Efficiency: | H25: =IFERROR(L21/H21*100,0) -> 85.50062397

Sheet Example - Monthly Data Unit 2
B1: Unit E2 Example
B2: 60 MW, 345 FT, 2100 CFS
B3: Imperial - Unit Monthly Efficiency Calculation
B5: Data Prior to Improvements: | K5: After Improvements:
B7: Year | C7: Month | D7: Unit Average Flow | E7: Gross Operating Head | F7: Net Operating Head | G7: Unit Actual Generation | H7: Calculated Theoretical Generation | I7: Calculated Facility Efficiency | K7: Unit Efficiency | L7: Calculated Improved Generation | M7: Calculated Generation Increase
B8: (YYYY) | C8: (MM) | D8: (CFS) | E8: (FT) | F8: (FT) | G8: (MWH) | H8: (MWH) | I8: (%) | K8: (%) | L8: (MWH) | M8: (MWH)
B9: 2018 | C9: 1 | D9: 1765 | E9: 190 | F9: =E9-0.000004*POWER(D9,2) -> 177.5391 | G9: 13000 | H9: =IFERROR(D9*F9/11.81*24*DAY(EOMONTH(DATEVALUE(C9&"-01-"&B9),0))/1000,0) -> 19740.66423 | I9: =IFERROR(G9/H9*100,0) -> 65.85391377 | K9: 83 | L9: =IFERROR(H9*K9/100,0) -> 16384.75131 | M9: =IFERROR(L9-G9,0) -> 3384.751311
B10: 2018 | C10: 2 | D10: 1695 | E10: 196 | F10: =E10-0.000004*POWER(D10,2) -> 184.5079 | G10: 11600 | H10: 17795.24796 | I10: 65.18594192 | K10: 83 | L10: =IFERROR(H10*K10/100,0) -> 14770.05581 | M10: 3170.055807
B11: 2018 | C11: 3 | D11: 1624 | E11: 182 | F11: 171.450496 | G11: 11000 | H11: 17540.73586 | I11: 62.7111661 | K11: 82.5 | L11: 14471.10708 | M11: 3471.107084
B12: 2018 | C12: 4 | D12: 1342 | E12: 194 | F12: 186.796144 | G12: 9550 | H12: 15282.80323 | I12: 62.488536 | K12: 84 | L12: 12837.55472 | M12: 3287.554715
B13: 2018 | C13: 5 | D13: 1500 | E13: 206 | F13: 197 | G13: 15000 | H13: 18615.74936 | I13: 80.57693357 | K13: 83 | L13: 15451.07197 | M13: 451.0719729
B14: 2018 | C14: 6 | D14: 1747 | E14: 235 | F14: 222.791964 | G14: 20000 | H14: 23728.75902 | I14: 84.28590802 | K14: 85 | L14: 20169.44516 | M14: 169.445165
B15: 2018 | C15: 7 | D15: 2083 | E15: 352 | F15: 334.644444 | G15: 37000 | H15: 43913.28504 | I15: 84.25696224 | K15: 87 | L15: 38204.55799 | M15: 1204.557989
B16: 2018 | C16: 8 | D16: 1994 | E16: 374 | F16: 358.095856 | G16: 37000 | H16: 44982.9038 | I16: 82.2534716 | K16: 87 | L16: 39135.1263 | M16: 2135.126302
B17: 2018 | C17: 9 | D17: 1942 | E17: 320 | F17: 304.914544 | G17: 32500 | H17: 36100.22964 | I17: 90.02712816 | K17: 87 | L17: 31407.19978 | M17: -1092.800217
B18: 2018 | C18: 10 | D18: 1553 | E18: 279 | F18: 269.352764 | G18: 22000 | H18: 26352.14249 | I18: 83.48467305 | K18: 86 | L18: 22662.84254 | M18: 662.8425419
B19: 2018 | C19: 11 | D19: 1377 | E19: 224 | F19: 216.415484 | G19: 15000 | H19: 18167.9058 | I19: 82.56317579 | K19: 85 | L19: 15442.71993 | M19: 442.719927
B20: 2018 | C20: 12 | D20: 1130 | E20: 166 | F20: 160.8924 | G20: 6850 | H20: 11453.46812 | I20: 59.80721234 | K20: 83 | L20: 9506.378542 | M20: 2656.378542
B21: Unit Cumulative: | G21: =SUM(G9:G20) -> 230500 | H21: =SUM(H9:H20) -> 293673.8946 | I21: 78.48842007 | L21: =SUM(L9:L20) -> 250442.8111 | M21: =SUM(M9:M20) -> 19942.81114
G23: Existing Unit Efficiency: | H23: =IFERROR(G21/H21*100,0) -> 78.48842007
G25: Improved Unit Efficiency: | H25: =IFERROR(L21/H21*100,0) -> 85.27922154
